[Event "December 5 Early 2023"]
[Site "https://www.chess.com"]
[Date "2023.12.05"]
[Round "10"]
[White "Tifferet, Shakked"]
[Black "Molina, Roberto Junio Brito"]
[Result "1/2-1/2"]
[Board "57"]
[TimeControl "180+1"]
[WhiteFideId "2811529"]
[BlackFideId "2109450"]
[WhiteElo "2563"]
[BlackElo "2792"]
[WhiteTeam "ISR"]
[BlackTeam "BRA"]
[WhiteClock "0:00:03"]
[BlackClock "0:00:07"]

1. d4 {[%clk 0:03:00]}  c6 {[%clk 0:03:00]} 2. Nc3 {[%clk 0:03:00]}  d5 {[%clk 0:03:01]} 3. Bf4 {[%clk 0:03:00]}  Qb6 {[%clk 0:03:00]} 4. Rb1 {[%clk 0:02:58]}  Bf5 {[%clk 0:03:00]} 5. e3 {[%clk 0:02:56]}  e6 {[%clk 0:02:59]} 6. Nf3 {[%clk 0:02:46]}  h6 {[%clk 0:02:57]} 7. Bd3 {[%clk 0:02:44]}  Bxd3 {[%clk 0:02:57]} 8. cxd3 {[%clk 0:02:45]}  Nf6 {[%clk 0:02:56]} 9. O-O {[%clk 0:02:46]}  Be7 {[%clk 0:02:55]} 10. b4 {[%clk 0:02:43]}  O-O {[%clk 0:02:54]} 11. b5 {[%clk 0:02:40]}  c5 {[%clk 0:02:54]} 12. Na4 {[%clk 0:02:31]}  Qa5 {[%clk 0:02:55]} 13. dxc5 {[%clk 0:02:22]}  Nbd7 {[%clk 0:02:52]} 14. d4 {[%clk 0:02:17]}  Ne4 {[%clk 0:02:48]} 15. Qb3 {[%clk 0:02:07]}  g5 {[%clk 0:02:42]} 16. Bg3 {[%clk 0:02:05]}  g4 {[%clk 0:02:42]} 17. Ne5 {[%clk 0:01:54]}  Nxe5 {[%clk 0:02:42]} 18. Bxe5 {[%clk 0:01:54]}  Nd2 {[%clk 0:02:37]} 19. Qd1 {[%clk 0:01:54]}  h5 {[%clk 0:02:29]} 20. Rb2 {[%clk 0:01:39]}  Nxf1 {[%clk 0:02:29]} 21. Kxf1 {[%clk 0:01:40]}  f6 {[%clk 0:02:23]} 22. Bf4 {[%clk 0:01:34]}  Kf7 {[%clk 0:02:20]} 23. e4 {[%clk 0:01:23]}  Rad8 {[%clk 0:01:45]} 24. e5 {[%clk 0:01:16]}  f5 {[%clk 0:01:39]} 25. Bd2 {[%clk 0:00:50]}  Qc7 {[%clk 0:01:38]} 26. Rc2 {[%clk 0:00:37]}  a6 {[%clk 0:01:34]} 27. Nc3 {[%clk 0:00:22]}  Kg6 {[%clk 0:01:18]} 28. a4 {[%clk 0:00:21]}  Ra8 {[%clk 0:01:17]} 29. Qb1 {[%clk 0:00:20]}  Rfb8 {[%clk 0:01:15]} 30. Rb2 {[%clk 0:00:20]}  axb5 {[%clk 0:01:15]} 31. Nxb5 {[%clk 0:00:19]}  Qc6 {[%clk 0:01:13]} 32. Nd6 {[%clk 0:00:19]}  b6 {[%clk 0:01:13]} 33. Rxb6 {[%clk 0:00:17]}  Rxb6 {[%clk 0:01:10]} 34. Qxb6 {[%clk 0:00:18]}  Qxa4 {[%clk 0:00:59]} 35. Nc8 {[%clk 0:00:16]}  Qa6+ {[%clk 0:00:55]} 36. Qxa6 {[%clk 0:00:16]}  Rxa6 {[%clk 0:00:56]} 37. Nxe7+ {[%clk 0:00:16]}  Kf7 {[%clk 0:00:56]} 38. Nc8 {[%clk 0:00:15]}  Ra4 {[%clk 0:00:46]} 39. c6 {[%clk 0:00:12]}  Ke8 {[%clk 0:00:46]} 40. c7 {[%clk 0:00:10]}  Ra1+ {[%clk 0:00:45]} 41. Ke2 {[%clk 0:00:10]}  Kd7 {[%clk 0:00:45]} 42. Nd6 {[%clk 0:00:08]}  Kxc7 {[%clk 0:00:45]} 43. Nf7 {[%clk 0:00:08]}  Kd7 {[%clk 0:00:43]} 44. g3 {[%clk 0:00:08]}  Ra3 {[%clk 0:00:42]} 45. Nd6 {[%clk 0:00:08]}  Ra4 {[%clk 0:00:38]} 46. Nb5 {[%clk 0:00:08]}  Kc6 {[%clk 0:00:37]} 47. Nc3 {[%clk 0:00:05]}  Rxd4 {[%clk 0:00:37]} 48. Be3 {[%clk 0:00:06]}  Rb4 {[%clk 0:00:35]} 49. Kd3 {[%clk 0:00:06]}  Rb2 {[%clk 0:00:35]} 50. Ne2 {[%clk 0:00:07]}  Kd7 {[%clk 0:00:32]} 51. Nf4 {[%clk 0:00:07]}  Ke7 {[%clk 0:00:31]} 52. Nxh5 {[%clk 0:00:08]}  Kf7 {[%clk 0:00:31]} 53. Nf4 {[%clk 0:00:08]}  Rb3+ {[%clk 0:00:31]} 54. Ke2 {[%clk 0:00:08]}  Rb8 {[%clk 0:00:32]} 55. Nd3 {[%clk 0:00:07]}  Rh8 {[%clk 0:00:32]} 56. Bf4 {[%clk 0:00:06]}  Rxh2 {[%clk 0:00:32]} 57. Ke3 {[%clk 0:00:06]}  Rh1 {[%clk 0:00:30]} 58. Kd4 {[%clk 0:00:07]}  Ra1 {[%clk 0:00:29]} 59. Be3 {[%clk 0:00:08]}  Ra4+ {[%clk 0:00:29]} 60. Kc5 {[%clk 0:00:08]}  Ra2 {[%clk 0:00:26]} 61. Nf4 {[%clk 0:00:08]}  Rc2+ {[%clk 0:00:22]} 62. Kd6 {[%clk 0:00:06]}  Ra2 {[%clk 0:00:21]} 63. Nxe6 {[%clk 0:00:04]}  Ra6+ {[%clk 0:00:20]} 64. Kxd5 {[%clk 0:00:05]}  Rxe6 {[%clk 0:00:20]} 65. Bf4 {[%clk 0:00:04]}  Ra6 {[%clk 0:00:20]} 66. Be3 {[%clk 0:00:03]}  Ke7 {[%clk 0:00:19]} 67. Bd4 {[%clk 0:00:04]}  Kd7 {[%clk 0:00:19]} 68. Bc5 {[%clk 0:00:04]}  Rh6 {[%clk 0:00:18]} 69. Bd6 {[%clk 0:00:04]}  Rg6 {[%clk 0:00:18]} 70. Bc5 {[%clk 0:00:03]}  Rc6 {[%clk 0:00:16]} 71. Bd6 {[%clk 0:00:04]}  Ra6 {[%clk 0:00:17]} 72. e6+ {[%clk 0:00:04]}  Ke8 {[%clk 0:00:16]} 73. Bf4 {[%clk 0:00:03]}  Ra5+ {[%clk 0:00:14]} 74. Kd6 {[%clk 0:00:03]}  Rb5 {[%clk 0:00:14]} 75. Bg5 {[%clk 0:00:03]}  Rb2 {[%clk 0:00:12]} 76. Be3 {[%clk 0:00:03]}  Rb5 {[%clk 0:00:12]} 77. Bg5 {[%clk 0:00:03]}  Ra5 {[%clk 0:00:11]} 78. Be3 {[%clk 0:00:03]}  Rb5 {[%clk 0:00:07]} 79. Bg5 {[%clk 0:00:03]} 1/2-1/2

[Event "December 5 Early 2023"]
[Site "https://www.chess.com"]
[Date "2023.12.05"]
[Round "10"]
[White "Atakhan, Abtin"]
[Black "Yelisieiev, Yevhenii"]
[Result "1-0"]
[Board "60"]
[TimeControl "180+1"]
[WhiteFideId "22502203"]
[BlackFideId "14139642"]
[WhiteElo "2724"]
[BlackElo "2556"]
[WhiteTeam "IRI"]
[BlackTeam "GER"]
[WhiteClock "0:01:14"]
[BlackClock "0:00:12"]

1. c4 {[%clk 0:02:57]}  d6 {[%clk 0:03:00]} 2. Nc3 {[%clk 0:02:56]}  Nf6 {[%clk 0:03:01]} 3. g3 {[%clk 0:02:56]}  e5 {[%clk 0:03:01]} 4. Bg2 {[%clk 0:02:56]}  Nbd7 {[%clk 0:03:01]} 5. d3 {[%clk 0:02:57]}  Be7 {[%clk 0:03:02]} 6. e4 {[%clk 0:02:56]}  O-O {[%clk 0:03:03]} 7. Nge2 {[%clk 0:02:57]}  c6 {[%clk 0:03:02]} 8. O-O {[%clk 0:02:57]}  a5 {[%clk 0:03:02]} 9. h3 {[%clk 0:02:54]}  Nc5 {[%clk 0:03:02]} 10. Be3 {[%clk 0:02:54]}  Ne8 {[%clk 0:02:59]} 11. d4 {[%clk 0:02:52]}  Ne6 {[%clk 0:02:57]} 12. f4 {[%clk 0:02:51]}  exd4 {[%clk 0:02:53]} 13. Nxd4 {[%clk 0:02:52]}  Bf6 {[%clk 0:02:47]} 14. Rf2 {[%clk 0:02:45]}  Nxd4 {[%clk 0:02:38]} 15. Bxd4 {[%clk 0:02:46]}  Nc7 {[%clk 0:02:38]} 16. Rd2 {[%clk 0:02:40]}  Be7 {[%clk 0:02:30]} 17. c5 {[%clk 0:02:35]}  Ne6 {[%clk 0:02:21]} 18. cxd6 {[%clk 0:02:32]}  Qxd6 {[%clk 0:02:18]} 19. Be3 {[%clk 0:02:06]}  Qc7 {[%clk 0:02:17]} 20. Rc1 {[%clk 0:02:01]}  Bc5 {[%clk 0:02:15]} 21. Bxc5 {[%clk 0:01:52]}  Nxc5 {[%clk 0:02:16]} 22. Kh2 {[%clk 0:01:41]}  b6 {[%clk 0:01:57]} 23. e5 {[%clk 0:01:39]}  Ba6 {[%clk 0:01:52]} 24. Ne4 {[%clk 0:01:31]}  Nxe4 {[%clk 0:01:41]} 25. Bxe4 {[%clk 0:01:32]}  Rac8 {[%clk 0:01:39]} 26. Rd7 {[%clk 0:01:27]}  Qb8 {[%clk 0:01:38]} 27. Bxh7+ {[%clk 0:01:12]}  Kxh7 {[%clk 0:01:30]} 28. Qh5+ {[%clk 0:01:13]}  Kg8 {[%clk 0:01:30]} 29. e6 {[%clk 0:01:14]}  g6 {[%clk 0:00:59]} 30. Qh6 {[%clk 0:01:14]}  Rc7 {[%clk 0:00:15]} 31. exf7+ {[%clk 0:01:14]}  Rxf7 {[%clk 0:00:15]} 32. Qxg6+ {[%clk 0:01:14]}  Kh8 {[%clk 0:00:15]} 33. Qh5+ {[%clk 0:01:14]}  Kg8 {[%clk 0:00:12]} 34. Qxf7+ {[%clk 0:01:14]} 1-0

[Event "December 5 Early 2023"]
[Site "https://www.chess.com"]
[Date "2023.12.05"]
[Round "10"]
[White "Spata, German"]
[Black "Lund, Gunnar"]
[Result "1-0"]
[Board "65"]
[TimeControl "180+1"]
[WhiteFideId "113026"]
[BlackFideId "1520814"]
[WhiteElo "2642"]
[BlackElo "2587"]
[WhiteTeam "ARG"]
[BlackTeam "NOR"]
[WhiteClock "0:00:39"]
[BlackClock "0:00:22"]

1. Nf3 {[%clk 0:02:57]}  d6 {[%clk 0:02:57]} 2. d4 {[%clk 0:02:56]}  Nf6 {[%clk 0:02:55]} 3. e3 {[%clk 0:02:56]}  Nbd7 {[%clk 0:02:55]} 4. Be2 {[%clk 0:02:57]}  e5 {[%clk 0:02:55]} 5. O-O {[%clk 0:02:58]}  Be7 {[%clk 0:02:56]} 6. c4 {[%clk 0:02:58]}  O-O {[%clk 0:02:56]} 7. Nc3 {[%clk 0:02:59]}  c6 {[%clk 0:02:56]} 8. b4 {[%clk 0:02:59]}  Re8 {[%clk 0:02:55]} 9. b5 {[%clk 0:02:59]}  Bf8 {[%clk 0:02:54]} 10. a4 {[%clk 0:02:58]}  e4 {[%clk 0:02:54]} 11. Nd2 {[%clk 0:02:58]}  d5 {[%clk 0:02:54]} 12. a5 {[%clk 0:02:56]}  Bb4 {[%clk 0:02:41]} 13. Qb3 {[%clk 0:02:50]}  Bxa5 {[%clk 0:02:33]} 14. bxc6 {[%clk 0:02:49]}  bxc6 {[%clk 0:02:10]} 15. cxd5 {[%clk 0:02:49]}  Rb8 {[%clk 0:01:45]} 16. Qc2 {[%clk 0:02:24]}  cxd5 {[%clk 0:01:44]} 17. Nb3 {[%clk 0:02:19]}  Bb6 {[%clk 0:01:38]} 18. Nb5 {[%clk 0:02:16]}  Nf8 {[%clk 0:01:37]} 19. Nxa7 {[%clk 0:02:07]}  Bg4 {[%clk 0:01:22]} 20. Bxg4 {[%clk 0:01:57]}  Nxg4 {[%clk 0:01:21]} 21. h3 {[%clk 0:01:57]}  Rc8 {[%clk 0:01:10]} 22. Nxc8 {[%clk 0:01:50]}  Nf6 {[%clk 0:01:05]} 23. Nxb6 {[%clk 0:01:49]}  Qxb6 {[%clk 0:01:06]} 24. Nc5 {[%clk 0:01:46]}  Ne6 {[%clk 0:01:06]} 25. Nxe6 {[%clk 0:01:45]}  fxe6 {[%clk 0:01:07]} 26. Ba3 {[%clk 0:01:42]}  g5 {[%clk 0:01:00]} 27. Qc5 {[%clk 0:01:32]}  Qb8 {[%clk 0:01:00]} 28. Qd6 {[%clk 0:01:32]}  Qb3 {[%clk 0:00:55]} 29. Qe5 {[%clk 0:01:26]}  Kf7 {[%clk 0:00:53]} 30. Qxg5 {[%clk 0:01:08]}  Rg8 {[%clk 0:00:52]} 31. Qf4 {[%clk 0:01:06]}  Qc3 {[%clk 0:00:36]} 32. Bd6 {[%clk 0:01:03]}  Kg6 {[%clk 0:00:32]} 33. Be5 {[%clk 0:00:58]}  Rf8 {[%clk 0:00:32]} 34. Bxf6 {[%clk 0:00:55]}  Rxf6 {[%clk 0:00:32]} 35. Qg4+ {[%clk 0:00:54]}  Kh6 {[%clk 0:00:32]} 36. Ra7 {[%clk 0:00:51]}  e5 {[%clk 0:00:22]} 37. Qg7+ {[%clk 0:00:45]}  Kh5 {[%clk 0:00:23]} 38. Qxf6 {[%clk 0:00:43]}  exd4 {[%clk 0:00:22]} 39. Rxh7# {[%clk 0:00:39]} 1-0

[Event "December 5 Early 2023"]
[Site "https://www.chess.com"]
[Date "2023.12.05"]
[Round "10"]
[White "Espinoza Villanueva, Rodrigo"]
[Black "Budrewicz, Krzysztof"]
[Result "0-1"]
[Board "71"]
[TimeControl "180+1"]
[WhiteFideId "5140188"]
[BlackFideId "1127950"]
[WhiteElo "2602"]
[BlackElo "2509"]
[WhiteTeam "MEX"]
[BlackTeam "POL"]
[WhiteClock "0:00:00"]
[BlackClock "0:00:06"]

1. d4 {[%clk 0:02:58]}  c5 {[%clk 0:02:59]} 2. c4 {[%clk 0:02:59]}  cxd4 {[%clk 0:02:59]} 3. Nf3 {[%clk 0:02:57]}  e5 {[%clk 0:02:59]} 4. a3 {[%clk 0:02:52]}  d6 {[%clk 0:02:56]} 5. b4 {[%clk 0:02:50]}  a5 {[%clk 0:02:52]} 6. Bb2 {[%clk 0:02:45]}  axb4 {[%clk 0:02:51]} 7. axb4 {[%clk 0:02:46]}  Rxa1 {[%clk 0:02:51]} 8. Bxa1 {[%clk 0:02:46]}  Nf6 {[%clk 0:02:51]} 9. e3 {[%clk 0:02:43]}  dxe3 {[%clk 0:02:50]} 10. fxe3 {[%clk 0:02:43]}  Qb6 {[%clk 0:02:50]} 11. Qd2 {[%clk 0:02:41]}  Ne4 {[%clk 0:02:45]} 12. Qd3 {[%clk 0:02:34]}  Qxb4+ {[%clk 0:02:44]} 13. Bc3 {[%clk 0:02:34]}  Nxc3 {[%clk 0:02:43]} 14. Nxc3 {[%clk 0:02:35]}  Nc6 {[%clk 0:02:39]} 15. Be2 {[%clk 0:02:31]}  Bf5 {[%clk 0:02:26]} 16. Qxf5 {[%clk 0:02:17]}  Qxc3+ {[%clk 0:02:26]} 17. Kf2 {[%clk 0:02:18]}  Be7 {[%clk 0:02:25]} 18. Rb1 {[%clk 0:02:12]}  Nd8 {[%clk 0:02:15]} 19. Rb5 {[%clk 0:01:54]}  O-O {[%clk 0:02:14]} 20. Qd7 {[%clk 0:01:53]}  Bf6 {[%clk 0:02:14]} 21. Qxd6 {[%clk 0:01:52]}  h6 {[%clk 0:02:00]} 22. h3 {[%clk 0:01:46]}  Re8 {[%clk 0:01:57]} 23. Qd7 {[%clk 0:01:40]}  Re6 {[%clk 0:01:52]} 24. g3 {[%clk 0:01:36]}  g6 {[%clk 0:01:40]} 25. h4 {[%clk 0:01:30]}  Kg7 {[%clk 0:01:39]} 26. e4 {[%clk 0:01:26]}  h5 {[%clk 0:01:26]} 27. Qd5 {[%clk 0:01:22]}  Qa1 {[%clk 0:01:15]} 28. c5 {[%clk 0:01:17]}  Qc3 {[%clk 0:01:06]} 29. Nd2 {[%clk 0:01:08]}  Qd4+ {[%clk 0:01:03]} 30. Qxd4 {[%clk 0:00:54]}  exd4 {[%clk 0:01:03]} 31. Bc4 {[%clk 0:00:55]}  Re7 {[%clk 0:01:02]} 32. Ke2 {[%clk 0:00:54]}  Be5 {[%clk 0:01:02]} 33. Kf3 {[%clk 0:00:50]}  Nc6 {[%clk 0:01:00]} 34. Bd5 {[%clk 0:00:45]}  Kh6 {[%clk 0:00:44]} 35. Nc4 {[%clk 0:00:43]}  Bg7 {[%clk 0:00:44]} 36. Nb2 {[%clk 0:00:38]}  d3 {[%clk 0:00:43]} 37. Ke3 {[%clk 0:00:31]}  Be5 {[%clk 0:00:35]} 38. Nxd3 {[%clk 0:00:29]}  Bxg3 {[%clk 0:00:34]} 39. Rb6 {[%clk 0:00:27]}  Rc7 {[%clk 0:00:31]} 40. Bxc6 {[%clk 0:00:25]}  bxc6 {[%clk 0:00:32]} 41. Nb4 {[%clk 0:00:23]}  Bxh4 {[%clk 0:00:32]} 42. Rxc6 {[%clk 0:00:22]}  Ra7 {[%clk 0:00:14]} 43. Ra6 {[%clk 0:00:17]}  Bg5+ {[%clk 0:00:14]} 44. Kd4 {[%clk 0:00:16]}  Rd7+ {[%clk 0:00:14]} 45. Kc4 {[%clk 0:00:15]}  Rd1 {[%clk 0:00:13]} 46. c6 {[%clk 0:00:13]}  Rc1+ {[%clk 0:00:12]} 47. Kb5 {[%clk 0:00:13]}  Bf4 {[%clk 0:00:11]} 48. Ra7 {[%clk 0:00:11]}  h4 {[%clk 0:00:10]} 49. Rxf7 {[%clk 0:00:10]}  Bg3 {[%clk 0:00:10]} 50. Rf8 {[%clk 0:00:09]}  Kg7 {[%clk 0:00:10]} 51. Rf3 {[%clk 0:00:08]}  g5 {[%clk 0:00:06]} 52. Nd5 {[%clk 0:00:06]}  g4 {[%clk 0:00:06]} 53. Rf5 {[%clk 0:00:03]}  h3 {[%clk 0:00:06]} 54. Rg5+ {[%clk 0:00:03]}  Kh6 {[%clk 0:00:06]} 55. Rxg4 {[%clk 0:00:03]}  h2 {[%clk 0:00:06]} 56. Rxg3 {[%clk 0:00:01]}  h1=Q {[%clk 0:00:06]} 57. Rc3 {[%clk 0:00:00]}  Rb1+ {[%clk 0:00:06]} 0-1

[Event "December 5 Early 2023"]
[Site "https://www.chess.com"]
[Date "2023.12.05"]
[Round "10"]
[White "Jaiveer Mahendru"]
[Black "Iljin, Timofey"]
[Result "1-0"]
[Board "73"]
[TimeControl "180+1"]
[WhiteFideId "25611151"]
[BlackFideId "14110180"]
[WhiteElo "2598"]
[BlackElo "2484"]
[WhiteTeam "IND"]
[BlackTeam "UKR"]
[WhiteClock "0:00:17"]
[BlackClock "0:00:02"]

1. f4 {[%clk 0:03:00]}  c5 {[%clk 0:02:51]} 2. Nf3 {[%clk 0:03:00]}  Nc6 {[%clk 0:02:47]} 3. g3 {[%clk 0:02:59]}  g6 {[%clk 0:02:46]} 4. Bg2 {[%clk 0:02:59]}  Bg7 {[%clk 0:02:46]} 5. O-O {[%clk 0:03:00]}  Nh6 {[%clk 0:02:46]} 6. e4 {[%clk 0:02:58]}  d6 {[%clk 0:02:46]} 7. Nc3 {[%clk 0:02:56]}  O-O {[%clk 0:02:46]} 8. h3 {[%clk 0:02:56]}  f5 {[%clk 0:02:46]} 9. d3 {[%clk 0:02:52]}  Nf7 {[%clk 0:02:44]} 10. Nd5 {[%clk 0:02:41]}  e6 {[%clk 0:02:41]} 11. Ne3 {[%clk 0:02:41]}  e5 {[%clk 0:02:40]} 12. exf5 {[%clk 0:02:33]}  gxf5 {[%clk 0:02:39]} 13. fxe5 {[%clk 0:02:26]}  dxe5 {[%clk 0:02:36]} 14. Nh2 {[%clk 0:02:11]}  Nd6 {[%clk 0:02:09]} 15. Qh5 {[%clk 0:02:02]}  f4 {[%clk 0:01:41]} 16. gxf4 {[%clk 0:01:49]}  exf4 {[%clk 0:01:41]} 17. Neg4 {[%clk 0:01:38]}  Nd4 {[%clk 0:01:40]} 18. Nh6+ {[%clk 0:01:07]}  Bxh6 {[%clk 0:00:39]} 19. Qxh6 {[%clk 0:01:08]}  N6f5 {[%clk 0:00:36]} 20. Qh5 {[%clk 0:00:36]}  Be6 {[%clk 0:00:29]} 21. Bxf4 {[%clk 0:00:33]}  Bd5 {[%clk 0:00:17]} 22. Be5 {[%clk 0:00:20]}  Bxg2 {[%clk 0:00:14]} 23. Qg4+ {[%clk 0:00:20]}  Kf7 {[%clk 0:00:14]} 24. Rxf5+ {[%clk 0:00:21]}  Nxf5 {[%clk 0:00:10]} 25. Qxf5+ {[%clk 0:00:22]}  Ke7 {[%clk 0:00:03]} 26. Qxh7+ {[%clk 0:00:22]}  Rf7 {[%clk 0:00:03]} 27. Qh4+ {[%clk 0:00:22]}  Ke6 {[%clk 0:00:03]} 28. Qh6+ {[%clk 0:00:23]}  Kxe5 {[%clk 0:00:04]} 29. Re1+ {[%clk 0:00:19]}  Kf5 {[%clk 0:00:03]} 30. Ng4 {[%clk 0:00:16]}  Qg5 {[%clk 0:00:02]} 31. Re5+ {[%clk 0:00:16]}  Kf4 {[%clk 0:00:01]} 32. Qxg5+ {[%clk 0:00:17]}  Kf3 {[%clk 0:00:02]} 33. Re3# {[%clk 0:00:17]} 1-0

[Event "December 5 Early 2023"]
[Site "https://www.chess.com"]
[Date "2023.12.05"]
[Round "10"]
[White "Swicarz, Maciej"]
[Black "Navarrete Mendez, Gonzalo Alberto"]
[Result "0-1"]
[Board "74"]
[TimeControl "180+1"]
[WhiteFideId "1113585"]
[BlackFideId "5106850"]
[WhiteElo "2455"]
[BlackElo "2597"]
[WhiteTeam "POL"]
[BlackTeam "MEX"]
[WhiteClock "0:00:24"]
[BlackClock "0:01:14"]

1. e4 {[%clk 0:03:00]}  e5 {[%clk 0:02:59]} 2. Nf3 {[%clk 0:03:00]}  Nc6 {[%clk 0:02:59]} 3. c3 {[%clk 0:03:00]}  d5 {[%clk 0:02:59]} 4. Qa4 {[%clk 0:02:59]}  Nf6 {[%clk 0:02:59]} 5. Nxe5 {[%clk 0:02:55]}  Bd6 {[%clk 0:02:59]} 6. Nxc6 {[%clk 0:02:52]}  bxc6 {[%clk 0:03:00]} 7. exd5 {[%clk 0:02:48]}  O-O {[%clk 0:02:59]} 8. d4 {[%clk 0:02:45]}  Re8+ {[%clk 0:02:59]} 9. Be3 {[%clk 0:02:45]}  Ng4 {[%clk 0:02:59]} 10. Be2 {[%clk 0:02:32]}  Nxe3 {[%clk 0:02:55]} 11. fxe3 {[%clk 0:02:32]}  Qh4+ {[%clk 0:02:52]} 12. Kd1 {[%clk 0:02:19]}  Rxe3 {[%clk 0:02:45]} 13. Qxc6 {[%clk 0:02:17]}  Rb8 {[%clk 0:02:42]} 14. Nd2 {[%clk 0:01:58]}  Qf2 {[%clk 0:02:27]} 15. Re1 {[%clk 0:01:49]}  Bg4 {[%clk 0:01:56]} 16. Qa6 {[%clk 0:01:21]}  Rbe8 {[%clk 0:01:34]} 17. Nf3 {[%clk 0:01:09]}  Qxg2 {[%clk 0:01:34]} 18. Ne5 {[%clk 0:00:51]}  Bxe5 {[%clk 0:01:26]} 19. dxe5 {[%clk 0:00:47]}  R3xe5 {[%clk 0:01:21]} 20. Kc2 {[%clk 0:00:24]}  Bxe2 {[%clk 0:01:14]} 0-1

[Event "December 5 Early 2023"]
[Site "https://www.chess.com"]
[Date "2023.12.05"]
[Round "10"]
[White "Herman, Daniel"]
[Black "Ianovsky, Matias Manuel"]
[Result "0-1"]
[Board "76"]
[TimeControl "180+1"]
[WhiteFideId "30935008"]
[BlackFideId "112470"]
[WhiteElo "2433"]
[BlackElo "2589"]
[WhiteTeam "USA"]
[BlackTeam "ARG"]
[WhiteClock "0:00:00"]
[BlackClock "0:00:20"]

1. d4 {[%clk 0:03:00]}  Nf6 {[%clk 0:02:58]} 2. c4 {[%clk 0:02:59]}  g6 {[%clk 0:02:58]} 3. Nc3 {[%clk 0:03:00]}  d5 {[%clk 0:02:58]} 4. h4 {[%clk 0:02:54]}  h5 {[%clk 0:02:56]} 5. Bg5 {[%clk 0:02:43]}  Bg7 {[%clk 0:02:51]} 6. e3 {[%clk 0:02:38]}  Ne4 {[%clk 0:02:34]} 7. Nxe4 {[%clk 0:02:37]}  dxe4 {[%clk 0:02:33]} 8. Ne2 {[%clk 0:02:32]}  c5 {[%clk 0:02:32]} 9. Qc2 {[%clk 0:02:20]}  Nc6 {[%clk 0:02:24]} 10. dxc5 {[%clk 0:01:45]}  Qa5+ {[%clk 0:02:16]} 11. Nc3 {[%clk 0:01:44]}  Bf5 {[%clk 0:02:01]} 12. O-O-O {[%clk 0:01:29]}  Nb4 {[%clk 0:01:41]} 13. Qa4+ {[%clk 0:01:29]}  Qxa4 {[%clk 0:01:35]} 14. Nxa4 {[%clk 0:01:30]}  Nxa2+ {[%clk 0:01:33]} 15. Kb1 {[%clk 0:01:30]}  Nb4 {[%clk 0:01:33]} 16. Be2 {[%clk 0:01:07]}  e5 {[%clk 0:01:29]} 17. Rd6 {[%clk 0:00:51]}  O-O {[%clk 0:01:20]} 18. g4 {[%clk 0:00:34]}  hxg4 {[%clk 0:01:11]} 19. h5 {[%clk 0:00:34]}  f6 {[%clk 0:01:07]} 20. h6 {[%clk 0:00:29]}  fxg5 {[%clk 0:00:53]} 21. hxg7 {[%clk 0:00:27]}  Kxg7 {[%clk 0:00:54]} 22. Nc3 {[%clk 0:00:16]}  Rh8 {[%clk 0:00:52]} 23. Rg1 {[%clk 0:00:16]}  Rh4 {[%clk 0:00:34]} 24. Nd5 {[%clk 0:00:11]}  Nd3 {[%clk 0:00:30]} 25. Ne7 {[%clk 0:00:08]}  Nxf2 {[%clk 0:00:27]} 26. Rf1 {[%clk 0:00:07]}  g3 {[%clk 0:00:27]} 27. Rg1 {[%clk 0:00:05]}  Rh1 {[%clk 0:00:25]} 28. Rxh1 {[%clk 0:00:05]}  Nxh1 {[%clk 0:00:26]} 29. Bf1 {[%clk 0:00:05]}  Rh8 {[%clk 0:00:21]} 30. Rd2 {[%clk 0:00:03]}  Nf2 {[%clk 0:00:20]} 31. Bg2 {[%clk 0:00:00]}  Rh2 {[%clk 0:00:20]} 0-1

[Event "December 5 Early 2023"]
[Site "https://www.chess.com"]
[Date "2023.12.05"]
[Round "10"]
[White "Rangel, Daniel"]
[Black "Bolat, Inayat"]
[Result "0-1"]
[Board "77"]
[TimeControl "180+1"]
[WhiteFideId "2124475"]
[BlackFideId "13733125"]
[WhiteElo "2529"]
[BlackElo "2429"]
[WhiteTeam "BRA"]
[BlackTeam "KAZ"]
[WhiteClock "0:00:00"]
[BlackClock "0:00:18"]

1. c4 {[%clk 0:03:00]}  Nf6 {[%clk 0:02:59]} 2. g3 {[%clk 0:03:01]}  g6 {[%clk 0:02:59]} 3. Bg2 {[%clk 0:03:01]}  Bg7 {[%clk 0:02:59]} 4. Nc3 {[%clk 0:03:01]}  O-O {[%clk 0:03:00]} 5. e4 {[%clk 0:03:01]}  d6 {[%clk 0:02:59]} 6. d3 {[%clk 0:03:02]}  c5 {[%clk 0:02:59]} 7. Nge2 {[%clk 0:03:02]}  e5 {[%clk 0:02:59]} 8. O-O {[%clk 0:03:03]}  Nc6 {[%clk 0:02:56]} 9. h3 {[%clk 0:02:59]}  Ne8 {[%clk 0:02:50]} 10. f4 {[%clk 0:02:49]}  f5 {[%clk 0:02:45]} 11. Be3 {[%clk 0:02:44]}  Nc7 {[%clk 0:02:42]} 12. Qd2 {[%clk 0:02:43]}  Ne6 {[%clk 0:02:40]} 13. Nd5 {[%clk 0:02:29]}  Ned4 {[%clk 0:02:30]} 14. Bxd4 {[%clk 0:02:20]}  Nxd4 {[%clk 0:02:25]} 15. Nxd4 {[%clk 0:02:20]}  cxd4 {[%clk 0:02:22]} 16. exf5 {[%clk 0:02:15]}  Bxf5 {[%clk 0:02:20]} 17. g4 {[%clk 0:02:12]}  Be6 {[%clk 0:02:20]} 18. Rae1 {[%clk 0:02:08]}  Kh8 {[%clk 0:02:15]} 19. Be4 {[%clk 0:01:52]}  Bxd5 {[%clk 0:02:12]} 20. Bxd5 {[%clk 0:01:51]}  Rxf4 {[%clk 0:02:11]} 21. Rxf4 {[%clk 0:01:49]}  Bh6 {[%clk 0:02:08]} 22. Rf8+ {[%clk 0:01:03]}  Qxf8 {[%clk 0:02:06]} 23. g5 {[%clk 0:01:03]}  Bg7 {[%clk 0:01:53]} 24. Rf1 {[%clk 0:01:02]}  Qc8 {[%clk 0:01:45]} 25. Kg2 {[%clk 0:00:38]}  Qd8 {[%clk 0:01:21]} 26. Rf7 {[%clk 0:00:36]}  Rc8 {[%clk 0:01:21]} 27. h4 {[%clk 0:00:30]}  Rc7 {[%clk 0:01:19]} 28. Qf2 {[%clk 0:00:30]}  Qc8 {[%clk 0:01:15]} 29. Kg3 {[%clk 0:00:21]}  e4 {[%clk 0:01:13]} 30. Bxe4 {[%clk 0:00:18]}  Be5+ {[%clk 0:01:13]} 31. Kg2 {[%clk 0:00:15]}  Qg4+ {[%clk 0:01:12]} 32. Kf1 {[%clk 0:00:15]}  Qh3+ {[%clk 0:00:51]} 33. Ke2 {[%clk 0:00:14]}  Qg4+ {[%clk 0:00:41]} 34. Kd2 {[%clk 0:00:14]}  d5 {[%clk 0:00:20]} 35. Rf8+ {[%clk 0:00:11]}  Kg7 {[%clk 0:00:20]} 36. Rg8+ {[%clk 0:00:07]}  Kxg8 {[%clk 0:00:18]} 37. Bxd5+ {[%clk 0:00:07]}  Kg7 {[%clk 0:00:18]} 38. h5 {[%clk 0:00:00]}  Qf4+ {[%clk 0:00:18]} 0-1